[Event "Czech Championship 2022"]
[Site "Usti nad Labem"]
[Date "2022.05.15"]
[Round "2.10"]
[White "Paseka, Matyas"]
[Black "Stalmach, Richard"]
[Result "0-1"]
[ECO "B43"]
[WhiteElo "2076"]
[BlackElo "2350"]
[Annotator "TA"]
[PlyCount "104"]
[EventDate "2022.05.12"]
[EventType "swiss"]
[EventCountry "CZE"]
[SourceTitle "playchess.com"]
[Source "ChessBase"]
[SourceQuality "1"]
[TimeControl "40/5400+30:1800+30"]

{[%evp 16,104,28,20,29,22,33,15,51,33,31,29,39,33,43,40,37,0,0,0,-14,0,0,0,0,0,0,0,0,0,0,0,0,-116,-113,-90,-104,-208,-212,-191,-191,-183,-203,-211,-223,-226,-165,-197,-197,-193,-99,-91,0,-200,-195,-198,-175,-436,-416,-404,-418,-410,-412,-388,-363,-411,-403,-439,-432,-422,-325,-366,-346,-360,-363,-375,-373,-352,-370,-364,-350,-320,-308,-685,-681,-679,-668,-641,-589,-698,-656]} 1. e4 {[%emt 0:00:03] ChessBase II} c5 {[%emt 0:00:04]} 2. Nf3 {[%emt 0:00:06]} e6 {[%emt 0:00:11]} 3. d4 {[%emt 0:00:07]} cxd4 {[%emt 0:00:06]} 4. Nxd4 {[%emt 0:00:06]} a6 {[%emt 0:00:08]} 5. Nc3 {[%emt 0:00:26]} b5 {[%emt 0:00:09]} 6. Bd3 {[%emt 0:11:16]} Qb6 {[%emt 0:00:27]} 7. Nb3 {[%emt 0:00:46]} Qc7 {[%emt 0:00:17]} 8. O-O {[%emt 0:03:29]} Bb7 {[%emt 0:00:23]} 9. Qe2 {[%emt 0:03:08]} Be7 {[%emt 0:00:50] B43: Sicilian: Kan Variation: 5 Nc3.} 10. Bd2 {[%emt 0:04:15]} Nc6 {[%emt 0:04:58] [#]} 11. Rae1 $146 {[%emt 0:06:55]} ({Predecessor:} 11. f4 b4 12. Na4 Nf6 13. e5 Nd5 14. Rae1 g6 15. Kh1 Na5 16. Nd4 Nc6 17. Nf3 {½-½ (46) Nataf,I (2527)-Wahls,M (2580) Germany 2002 EXT 2003 [ChessBase II]}) 11... Nb4 {[%emt 0:14:08] The position is equal.} 12. a3 {[%emt 0:11:58]} Nxd3 {[%emt 0:00:13]} 13. cxd3 {[%emt 0:00:07]} Nf6 {[%emt 0:05:48]} 14. Rc1 {[%emt 0:01:57][%cal Oc3b5] And now Nxb5! would win.} Qd8 {[%emt 0:08:12]} 15. e5 {[%emt 0:21:58]} Nd5 {[%emt 0:00:20]} 16. Na5 {[%emt 0:00:06]} Nxc3 $11 {[%emt 0:01:55]} 17. Rxc3 {[%emt 0:00:08]} Bd5 {[%emt 0:02:29]} (17... Qxa5 18. Rc8+ $1 Rxc8 19. Bxa5 $16) 18. Qg4 {[%emt 0:00:09]} g6 {[%emt 0:06:28]} 19. Rfc1 {[%emt 0:02:03]} O-O {[%emt 0:00:41]} 20. Rc7 {[%emt 0:02:24]} Bc4 {[%emt 0:01:15] This bishop pair is nice.} 21. Rb7 {[%emt 0:02:59]} Bd5 {[%emt 0:00:33]} (21... Bxd3 22. Qd4 b4 23. Rxd7 (23. Qxd3 Qxa5 24. Qxd7 Rad8 $11) 23... Qxa5 24. Rxe7 $16 (24. Qxd3 Rfd8 $11) (24. axb4 Qa4 $16)) 22. Rbc7 {[%emt 0:00:51]} f6 $36 {[%emt 0:08:32][%mdl 2048] Black has good play.} 23. d4 {[%emt 0:11:24]} Rb8 {[%emt 0:17:43]} 24. Qh3 {[%emt 0:06:59]} (24. b4 $11) 24... fxe5 $17 {[%emt 0:03:53]} 25. dxe5 {[%emt 0:00:11]} Bc4 {[%emt 0:00:30]} 26. Nxc4 {[%emt 0:02:21]} Qxc7 $19 {[%emt 0:00:16]} 27. Nd6 {[%emt 0:00:08]} Qa7 {[%emt 0:01:07]} 28. Be3 {[%emt 0:00:08]} Qa8 {[%emt 0:00:03]} 29. Bh6 {[%emt 0:01:32]} Bxd6 {[%emt 0:02:16]} 30. exd6 {[%emt 0:00:06]} Rbc8 {[%emt 0:01:01] ...Rxc1+ is the strong threat.} 31. Rc7 {[%emt 0:00:58] [#] aiming for Qc3.} Qd5 $1 {[%emt 0:01:21][%cal Rd5d1]} 32. g4 {[%emt 0:02:23]} Qd1+ {[%emt 0:06:31]} (32... Qxd6 33. Qc3 Qd1+ 34. Kg2 Qxg4+ 35. Kh1 Qd1+ 36. Kg2 Qg4+ 37. Kh1 Qd1+ 38. Kg2 Qg4+ $11) (32... Rxc7 $1 $19 33. dxc7 Rc8) 33. Kg2 $17 {[%emt 0:00:05]} Qd5+ {[%emt 0:00:16]} ({Of course not} 33... Qxd6 $6 34. Qc3 Rxf2+ 35. Kxf2 Qxh2+ 36. Kf1 Qh1+ 37. Kf2 Qh2+ 38. Kf3 Qh3+ 39. Kf2 Qh2+ $11) (33... Qd4 $17 34. Bxf8 Rxf8) 34. Kg1 $19 {[%emt 0:00:06] White is now going downhill.} Rxc7 $1 {[%emt 0:03:47]} ({Stronger than} 34... Qxd6 35. Qc3 Qd1+ 36. Kg2 Qxg4+ 37. Kh1 Qd1+ 38. Kg2 Qg4+ 39. Kh1 Qd1+ 40. Kg2 Qg4+ $11) 35. dxc7 {[%emt 0:00:05][%mdl 4096] Endgame [#] KQR-KQB} Rc8 {[%emt 0:03:07]} 36. Qc3 {[%emt 0:00:35]} (36. Qh4 {was forced.}) 36... Qd1+ {[%emt 0:00:15]} 37. Kg2 {[%emt 0:00:07][%csl Gh6][%cal Rc3g7]} Qxg4+ {[%emt 0:00:12]} 38. Kh1 {[%emt 0:00:17][%csl Gh6][%cal Rc3g7] [#]} Qd1+ $1 {[%emt 0:00:03]} 39. Kg2 {[%emt 0:00:07][%csl Gh6][%cal Rc3g7]} Qd5+ {[%emt 0:00:04]} ({Don't blunder} 39... Qg4+ $2 40. Kh1 Qd1+ 41. Kg2 Qd5+ 42. f3 $19) 40. f3 {[%emt 0:00:21][%csl Gh6][%cal Rc3g7]} e5 {[%emt 0:00:20]} 41. Qb4 {[%emt 0:30:38]} Qe6 {[%emt 0:38:08] Prevents Qe7.} 42. Qc5 {[%emt 0:00:00]} d6 {[%emt 0:00:00]} 43. Qc6 {[%emt 0:00:00]} Qe7 {[%emt 0:00:00] Inhibits Bg5.} 44. Qd5+ {[%emt 0:00:00]} Kh8 {[%emt 0:00:00]} 45. h4 {[%emt 0:00:00]} Qxc7 {[%emt 0:00:00]} 46. Qe6 {[%emt 0:00:00]} Qc2+ {[%emt 0:00:00]} 47. Kg3 {[%emt 0:00:00] Qf6+ would kill now.} Qf5 {[%emt 0:00:00] Against Qf6+} 48. Qe7 {[%emt 0:00:00][%csl Gh6][%cal Re7g7]} Rg8 {[%emt 0:00:00] Against Qg7+} 49. Bg5 $2 {[%emt 0:00:00]} (49. Qxd6 Re8 50. Qc6) 49... Rf8 {[%emt 0:00:00] Black is clearly winning.} 50. Qb7 {[%emt 0:00:00]} Qf7 {[%emt 0:00:00]} 51. Qe4 {[%emt 0:00:00]} Kg7 {[%emt 0:00:00] Against Bh6+} 52. Qe3 {[%emt 0:00:00] [#]} Qf4+ $3 {[%emt 0:00:00][%mdl 512] Weighted Error Value: White=0.33/Black=0.11 (very precise)} 0-1

[Event "Czech Championship 2022"]
[Site "Usti nad Labem"]
[Date "2022.05.15"]
[Round "2.11"]
[White "Babula, Vlastimil"]
[Black "Horak, Jiri"]
[Result "1-0"]
[ECO "C45"]
[WhiteElo "2576"]
[BlackElo "2161"]
[Annotator "TA"]
[PlyCount "37"]
[EventDate "2022.05.12"]
[EventType "swiss"]
[EventCountry "CZE"]
[SourceTitle "playchess.com"]
[Source "ChessBase"]
[SourceQuality "1"]
[TimeControl "40/5400+30:1800+30"]

{[%evp 14,37,-6,-25,63,56,60,67,90,90,94,73,183,178,168,174,285,251,351,347,453,438,735,575,566,529]} 1. e4 {[%emt 0:00:05]} e5 {[%emt 0:00:05]} 2. Nf3 {[%emt 0:00:09]} Nc6 {[%emt 0:00:05]} 3. d4 {[%emt 0:00:17]} exd4 {[%emt 0:00:09]} 4. Nxd4 {[%emt 0:00:07]} Nf6 {[%emt 0:00:05]} 5. Nxc6 {[%emt 0:00:24]} bxc6 {[%emt 0:00:07]} 6. e5 {[%emt 0:00:23]} Qe7 {[%emt 0:00:23]} 7. Qe2 {[%emt 0:00:25]} Nd5 {[%emt 0:00:04]} 8. c4 {[%emt 0:00:25]} Nb4 {[%emt 0:01:14] C45: Scotch Game.} (8... Ba6 $11) 9. a3 $14 {[%emt 0:07:47]} Na6 {[%emt 0:00:05]} 10. b4 {[%emt 0:00:28] Inhibits Nc5.} d6 {[%emt 0:01:33] White is slightly better.} 11. Bb2 {[%emt 0:14:26] [#]} dxe5 $146 {[%emt 0:00:24]} ({Predecessor:} 11... Bb7 12. Nd2 c5 13. b5 Nb8 14. f4 Nd7 15. Nf3 Nb6 16. Rc1 O-O-O 17. g3 dxe5 18. fxe5 {0-1 (63) Holroyd,K-Harding,A (1988) Philadelphia 2010}) 12. g3 {[%emt 0:01:29]} Bb7 {[%emt 0:04:11]} (12... Nb8 $16) 13. Bg2 $18 {[%emt 0:02:59][%mdl 1024] White has strong compensation.} (13. Bxe5 $2 f6 14. Bf4 c5 $17) (13. Qxe5 $2 c5 14. Rg1 (14. Qxe7+ $2 Bxe7 15. Rg1 cxb4 $17) 14... Qxe5+ 15. Bxe5 cxb4 $17) 13... O-O-O {[%emt 0:02:58]} 14. O-O {[%emt 0:03:13]} ({Wrong is} 14. Bxe5 $2 Re8 15. f4 f6 $19) (14. Qxe5 $2 Qxe5+ 15. Bxe5 Re8 $19) 14... f6 {[%emt 0:04:15] [#]} (14... Qe6 $142 15. Nd2 (15. Qxe5 Qxc4 16. Nd2 Qb5 $16) (15. Bxe5 $2 f6 $17) 15... c5) 15. Nd2 $1 {[%emt 0:01:35]} g6 {[%emt 0:04:32]} 16. Nb3 {[%emt 0:06:54]} Bg7 {[%emt 0:06:00]} 17. Qe3 {[%emt 0:05:25] White is clearly winning.} Qe6 {[%emt 0:06:00]} (17... c5 $142 18. Bxb7+ Kxb7 19. Qe4+ (19. Nxc5+ Nxc5 20. bxc5 c6 $11) 19... Kc8 20. Qa8+ Nb8 21. Nxc5 c6) 18. Qxa7 {[%emt 0:01:38]} Qxc4 {[%emt 0:00:18] [#]} 19. Qxb7+ $3 {[%emt 0:00:45][%mdl 576] Decoy. White took control after the opening.  Weighted Error Value: White=0.12 (very precise) /Black=0.61} 1-0

[Event "Czech Championship 2022"]
[Site "Usti nad Labem"]
[Date "2022.05.15"]
[Round "2.12"]
[White "Rasik, Vitezslav"]
[Black "Brejnik, Gustav"]
[Result "1/2-1/2"]
[ECO "B11"]
[WhiteElo "2433"]
[BlackElo "2246"]
[Annotator "TA"]
[PlyCount "68"]
[EventDate "2022.05.12"]
[EventType "swiss"]
[EventCountry "CZE"]
[SourceTitle "playchess.com"]
[Source "ChessBase"]
[SourceQuality "1"]
[TimeControl "40/5400+30:1800+30"]

{[%evp 11,68,0,15,27,20,8,12,4,-2,0,29,22,28,19,32,19,33,34,41,36,37,40,58,35,44,16,16,11,6,0,16,16,8,10,7,14,27,25,63,0,0,0,0,-34,-27,-33,-29,-29,-8,-21,0,0,0,0,0,0,0,0,36]} 1. e4 {[%emt 0:00:04]} c6 {[%emt 0:00:11]} 2. Nc3 {[%emt 0:00:15]} d5 {[%emt 0:00:23]} 3. Nf3 {[%emt 0:00:09]} Bg4 {[%emt 0:00:10]} 4. h3 {[%emt 0:00:24]} Bxf3 {[%emt 0:00:04]} 5. Qxf3 {[%emt 0:00:03]} e6 {[%emt 0:00:12]} 6. d4 {[%emt 0:00:36]} dxe4 {[%emt 0:01:58]} 7. Qxe4 {[%emt 0:00:32] B11: Caro-Kann: Two Knights Variation.} Nf6 {[%emt 0:06:07]} 8. Qd3 {[%emt 0:00:17]} Be7 {[%emt 0:03:52]} 9. g3 {[%emt 0:03:16]} Na6 {[%emt 0:07:56]} 10. a3 {[%emt 0:07:33] Prevents Nb4.} O-O {[%emt 0:01:09]} 11. Bg2 {[%emt 0:02:08]} Qb6 {[%emt 0:11:53]} 12. O-O {[%emt 0:12:08]} Rfd8 {[%emt 0:23:31]} 13. Be3 {[%emt 0:09:10] [#]} Nd5 $146 {[%emt 0:00:51]} (13... Qxb2 $2 14. Rfb1 Nc5 15. Rxb2 $18) ({Predecessor:} 13... Rd7 14. b4 Qc7 15. b5 Nb8 16. Qe2 Nd5 17. Ne4 cxb5 18. Qxb5 Nc6 19. Kh2 a6 {½-½ (47) Bugaj,H (1782)-Sloniewska,A (1700) Sypniewo 2022}) 14. Nxd5 {[%emt 0:06:07]} cxd5 {[%emt 0:02:17]} 15. b3 {[%emt 0:03:51]} Nb8 {[%emt 0:07:51]} 16. c4 {[%emt 0:03:06][%cal Bc2c4,Bc4c5][%mdl 32]} Qa6 {[%emt 0:00:32]} 17. Rfd1 {[%emt 0:10:27]} Nc6 {[%emt 0:01:10]} 18. c5 {[%emt 0:04:24] Hoping for Qxa6.} Qxd3 {[%emt 0:00:58]} 19. Rxd3 {[%emt 0:00:02]} a5 {[%emt 0:01:12]} 20. Rb1 {[%emt 0:05:38]} Bf6 {[%emt 0:00:23]} 21. Bf1 {[%emt 0:02:05]} b6 {[%emt 0:10:30]} 22. Rc1 {[%emt 0:10:50][%cal Bb1c1,Bc1c5,Bc5b5][%mdl 32]} bxc5 {[%emt 0:01:50]} 23. Rxc5 {[%emt 0:00:41]} Ne7 {[%emt 0:03:30][%cal Bc6e7,Be7g6,Bg6f4][%mdl 32]} 24. g4 {[%emt 0:02:57] [#] Inhibits Nf5. g5 is the strong threat.} Ng6 {[%emt 0:01:06]} 25. a4 {[%emt 0:01:44]} (25. Bd2 $1 $14) 25... Be7 $11 {[%emt 0:00:24]} 26. Rb5 {[%emt 0:00:45]} Bb4 {[%emt 0:00:21]} 27. Bd2 {[%emt 0:02:32]} Bxd2 {[%emt 0:00:01]} 28. Rxd2 {[%emt 0:00:03]} Rdc8 {[%emt 0:00:06]} 29. f3 {[%emt 0:06:14]} Nf4 {[%emt 0:01:49]} (29... Rc1 {seems wilder.} 30. Kf2 Nh4 31. f4 Ng6) 30. h4 {[%emt 0:00:32] The position is equal.} g5 {[%emt 0:02:27]} 31. hxg5 {[%emt 0:00:23]} Kg7 $1 {[%emt 0:00:53]} 32. Kf2 {[%emt 0:00:37]} Kg6 $1 {[%emt 0:00:24]} 33. b4 {[%emt 0:01:29]} axb4 {[%emt 0:00:33]} 34. Rxb4 {[%emt 0:00:18]} Rc3 {[%emt 0:05:24] Weighted Error Value: White=0.08 (flawless) /Black=0.06 (flawless)} 1/2-1/2

[Event "Czech Championship 2022"]
[Site "Usti nad Labem"]
[Date "2022.05.15"]
[Round "2.13"]
[White "Mikes, Jan"]
[Black "Jirasko, Miroslav"]
[Result "1-0"]
[ECO "B20"]
[WhiteElo "2349"]
[BlackElo "2091"]
[Annotator "TA"]
[PlyCount "39"]
[EventDate "2022.05.12"]
[EventType "swiss"]
[EventCountry "CZE"]
[SourceTitle "playchess.com"]
[Source "ChessBase"]
[SourceQuality "1"]
[TimeControl "40/5400+30:1800+30"]

{[%evp 9,39,-34,-11,-31,-24,-37,-33,-44,-52,-42,-36,-35,-44,-47,144,144,363,356,332,272,446,336,433,465,1445,1435,1636,1226,29987,29988,29993,29992]} 1. e4 {[%emt 0:00:05]} c5 {[%emt 0:00:12][%cal Bc7c5,Bc5b4,Bb4a3,Ba3a2][%mdl 32]} 2. b4 {[%emt 0:00:11]} cxb4 {[%emt 0:00:47]} 3. a3 {[%emt 0:00:09]} e5 {[%emt 0:00:51]} 4. Nf3 {[%emt 0:00:27]} Nc6 {[%emt 0:00:57]} 5. Bb2 {[%emt 0:00:33]} Qb6 {[%emt 0:05:32]} 6. Nxe5 {[%emt 0:02:44] And now Nc4 would win. B20: Sicilian: Unusual White 2nd moves.} bxa3 {[%emt 0:02:22]} 7. Bc3 {[%emt 0:00:13]} a2 $1 {[%emt 0:02:30] White must now prevent ...Nxe5.} 8. Nxf7 {[%emt 0:00:31][%mdl 64] [#] Decoy. Black is slightly better.} Kxf7 {[%emt 0:04:45]} 9. Bc4+ $1 {[%emt 0:00:09]} Ke8 {[%emt 0:00:14]} 10. Rxa2 {[%emt 0:00:06]} Nf6 {[%emt 0:07:24]} 11. O-O $1 {[%emt 0:00:36] [#] Hoping for e5.} Bc5 $146 {[%emt 0:01:15] [#]} (11... Qc5 $15 {keeps the upper hand.} 12. Na3 Qh5 13. Qxh5+ Nxh5) ({Predecessor:} 11... Kd8 12. Qf3 Nb4 13. Rb2 a5 14. Be5 Be7 15. Na3 Qc6 16. d3 d6 17. Bd4 d5 {0-1 (39) Windhausen,G (2288)-Kribben,M (2331) GER email 2011}) 12. Rb2 $1 $16 {[%emt 0:03:15]} Bxf2+ {[%emt 0:01:55]} (12... Qd8 $16 {was called for.}) 13. Rxf2 $18 {[%emt 0:00:14]} Qc5 {[%emt 0:00:08]} 14. Bd5 {[%emt 0:05:20]} Nxd5 $2 {[%emt 0:00:31]} (14... Rf8 {is a better defense.}) 15. Qh5+ {[%emt 0:00:30][%mdl 64] Pin} (15. exd5 Rf8 16. d4 Qxd5 17. Qe1+ Ne5 $18) 15... Kd8 {[%emt 0:00:21]} 16. exd5 {[%emt 0:00:39]} (16. Bxg7 Re8 17. Qxd5 Qxd5 18. Bf6+ (18. exd5 Re1+ 19. Rf1 Rxf1+ 20. Kxf1 Ne7 $18) 18... Kc7 19. exd5 Re1+ 20. Rf1 Rxf1+ 21. Kxf1 Na5 $18) 16... Ne7 {[%emt 0:01:47]} (16... Rf8 $142 17. d4 Qe7 18. Rxf8+ Qxf8 19. dxc6 dxc6 20. Qxh7 b6) 17. Bb4 {[%emt 0:02:09]} Qd4 {[%emt 0:00:19]} 18. c3 {[%emt 0:00:33]} g6 {[%emt 0:01:14]} 19. Bxe7+ {[%emt 0:00:09]} ({Less strong is} 19. cxd4 gxh5 20. Nc3 b6 $18) 19... Kxe7 {[%emt 0:00:06]} 20. Qe2+ {[%emt 0:00:04] Black did not feel at home in the position after the opening.  Weighted Error Value: White=0.12 (very precise) /Black=0.86} ({Weaker is} 20. cxd4 gxh5 21. Na3 d6 $16) 1-0

[Event "Czech Championship 2022"]
[Site "Usti nad Labem"]
[Date "2022.05.15"]
[Round "2.14"]
[White "Sorm, Daniel"]
[Black "Kozak, Milos"]
[Result "1-0"]
[ECO "C45"]
[WhiteElo "2306"]
[BlackElo "2114"]
[Annotator "TA"]
[PlyCount "77"]
[EventDate "2022.05.12"]
[EventType "swiss"]
[EventCountry "CZE"]
[SourceTitle "playchess.com"]
[Source "ChessBase"]
[SourceQuality "1"]
[TimeControl "40/5400+30:1800+30"]

{[%evp 17,77,0,0,-25,-35,-31,-24,-46,-27,-18,37,32,33,43,27,39,41,-21,-21,-24,306,287,290,307,303,283,297,129,129,128,185,185,175,177,177,0,34,0,184,174,158,123,283,293,285,230,292,285,320,345,341,339,323,316,336,364,458,449,560,497,497,435]} 1. e4 {[%emt 0:01:01]} e5 {[%emt 0:01:24]} 2. Nf3 {[%emt 0:01:15]} Nc6 {[%emt 0:01:02]} 3. d4 {[%emt 0:00:06]} exd4 {[%emt 0:00:05]} 4. Nxd4 {[%emt 0:00:20]} Nf6 {[%emt 0:00:14]} 5. Nxc6 {[%emt 0:00:23]} bxc6 {[%emt 0:00:10]} 6. e5 {[%emt 0:00:07]} Qe7 {[%emt 0:00:11]} 7. Qe2 {[%emt 0:00:10]} Nd5 {[%emt 0:00:07]} 8. c4 {[%emt 0:00:29]} Ba6 {[%emt 0:03:46]} 9. g3 {[%emt 0:00:38]} g6 {[%emt 0:01:10] 9...0-0-0 is vanishing.} 10. Bg2 {[%emt 0:02:45] C45: Scotch Game.} Bg7 {[%emt 0:00:58][%cal Bf8g7,Bg7e5,Be5d4][%mdl 32]} 11. O-O {[%emt 0:00:14]} O-O $1 {[%emt 0:00:46]} (11... Bxe5 12. Re1 f6 13. Qd1 Bxc4 14. f4 $18) 12. Re1 {[%emt 0:00:15] Black has an edge.} Rae8 {[%emt 0:11:33]} 13. Qc2 {[%emt 0:00:22]} Nb6 {[%emt 0:07:31]} (13... Qc5 $1 $11) 14. b3 $14 {[%emt 0:07:00]} Bxe5 {[%emt 0:09:34]} 15. Bb2 $36 {[%emt 0:13:27][%mdl 2048] White has the initiative.} Qf6 {[%emt 0:09:53]} 16. Nc3 {[%emt 0:02:35][%cal Bb1c3,Bc3d5,Bd5f6][%mdl 32]} Bd4 {[%emt 0:02:13] [#]} 17. c5 $146 {[%emt 0:04:34]} (17. a4 $14) ({Predecessor:} 17. Rad1 c5 18. Ba1 Rxe1+ 19. Rxe1 Qg7 20. Qc1 d6 21. Bc6 f5 22. Nd5 Nxd5 23. Bxd5+ {½-½ (71) Garcia Garcia,E (2051)-Vijayalakshmi,S (2411) Mallorca 2004}) 17... Nd5 $1 $11 {[%emt 0:09:57]} (17... Bxc5 $2 18. Ne4 Bxf2+ 19. Nxf2 $18) 18. Bxd5 {[%emt 0:02:52]} Rxe1+ $4 {[%emt 0:03:16][%mdl 8192]} (18... cxd5 $11 {and Black has nothing to worry.} 19. Nxd5 Qf3 20. Bxd4 (20. Ne7+ Rxe7 21. Rxe7 Bb7 $17) 20... Qxd5) 19. Rxe1 $18 {[%emt 0:00:06]} cxd5 {[%emt 0:00:03]} 20. Nxd5 {[%emt 0:01:40]} Qg7 {[%emt 0:00:19]} 21. Bxd4 {[%emt 0:11:19]} ({Not} 21. Nxc7 Bxb2 22. Nxa6 Qf6 $16) 21... Qxd4 {[%emt 0:03:26]} 22. Qe4 {[%emt 0:01:43]} ({Less strong is} 22. Nxc7 Bb7 $16) (22. Rd1 $1 $18 {[%cal Rd1d4]} Qg7 23. Nxc7) 22... Qxe4 $16 {[%emt 0:02:59]} 23. Rxe4 {[%emt 0:00:34][%mdl 4096] Endgame KRB-KRN} Bb7 {[%emt 0:00:47]} (23... Bd3 $16 24. Ra4 a6) 24. Nf6+ $1 $18 {[%emt 0:10:34]} ({Don't do} 24. Rd4 $6 Bxd5 25. Rxd5 Rd8 $14) 24... Kg7 {[%emt 0:03:03] [#]} 25. Ne8+ $1 {[%emt 0:00:07]} Kg8 {[%emt 0:06:48]} 26. Nf6+ {[%emt 0:00:39]} (26. Re7 $18) 26... Kg7 $14 {[%emt 0:00:12]} 27. Ne8+ {[%emt 0:00:01]} (27. Re8 $14) 27... Kg8 $18 {[%emt 0:00:09]} 28. Re7 {[%emt 0:01:10]} Bc6 {[%emt 0:00:36][%cal Od7d6]} 29. Nxc7 {[%emt 0:09:42] White is more active.} Rc8 $2 {[%emt 0:00:46] [#]} (29... d6 $16) 30. Re8+ $1 {[%emt 0:00:54]} Rxe8 {[%emt 0:00:05]} 31. Nxe8 {[%emt 0:00:02] KB-KN} Kf8 {[%emt 0:02:00]} 32. Nd6 {[%emt 0:00:39]} a6 {[%emt 0:01:11]} 33. f4 {[%emt 0:07:28][%cal Bf2f4,Bf4f5][%mdl 32]} Ke7 {[%emt 0:00:32]} 34. Kf2 {[%emt 0:00:07]} Ke6 {[%emt 0:00:30]} 35. b4 {[%emt 0:01:03]} f6 {[%emt 0:04:45]} 36. Ke3 {[%emt 0:00:21]} g5 {[%emt 0:01:38]} 37. Kd4 {[%emt 0:01:44] White is clearly winning.} h5 {[%emt 0:00:54]} 38. f5+ {[%emt 0:04:08]} Ke7 {[%emt 0:00:26]} 39. h4 {[%emt 0:00:30] Weighted Error Value: White=0.25 (precise) /Black=0.38} 1-0

[Event "Czech Championship 2022"]
[Site "Usti nad Labem"]
[Date "2022.05.15"]
[Round "2.15"]
[White "Krejci, Jan"]
[Black "Soucek, Petr"]
[Result "1/2-1/2"]
[ECO "B70"]
[WhiteElo "2520"]
[BlackElo "2177"]
[Annotator "TA"]
[PlyCount "92"]
[EventDate "2022.05.12"]
[EventType "swiss"]
[EventCountry "CZE"]
[SourceTitle "playchess.com"]
[Source "ChessBase"]
[SourceQuality "1"]
[TimeControl "40/5400+30:1800+30"]

{[%evp 18,92,20,0,0,0,13,5,0,0,0,-5,4,0,18,15,28,23,72,81,72,78,70,72,75,49,55,49,57,38,44,-25,-32,-43,-16,-51,0,0,0,-28,25,22,32,29,31,26,30,-18,-18,-18,-16,-37,-26,-26,0,-10,-14,-10,0,0,0,0,0,0,0,0,0,0,0,0,0,0,0,-22,0,-18,0]} 1. e4 {[%emt 0:00:03]} c5 {[%emt 0:02:04]} 2. Nf3 {[%emt 0:00:07]} d6 {[%emt 0:00:09]} 3. d4 {[%emt 0:00:50]} cxd4 {[%emt 0:00:06]} 4. Nxd4 {[%emt 0:00:04]} Nf6 {[%emt 0:00:04]} 5. Nc3 {[%emt 0:00:05]} g6 {[%emt 0:00:03]} 6. Bc4 {[%emt 0:00:29]} Bg7 {[%emt 0:00:27]} 7. O-O {[%emt 0:00:08]} O-O {[%emt 0:00:03]} 8. Re1 {[%emt 0:01:55]} Nc6 {[%emt 0:00:04]} 9. Bb3 {[%emt 0:06:16]} Bg4 {[%emt 0:01:33]} 10. Qd3 {[%emt 0:00:24]} Nxd4 {[%emt 0:01:38] B70: Sicilian Dragon: 6 g3 and 6 Be2 (without a later Be3).} 11. Qxd4 {[%emt 0:00:02]} Nd7 {[%emt 0:06:24] Inhibits e5.} 12. Qe3 {[%emt 0:01:44]} Nc5 {[%emt 0:01:08]} 13. Qg3 {[%emt 0:13:56]} Be6 {[%emt 0:05:39]} 14. Bg5 {[%emt 0:00:22][%cal Bc1g5,Bg5h4,Bh4g3][%mdl 32] [#]} Bxb3 $146 {[%emt 0:02:05]} ({Predecessor:} 14... h6 15. Be3 Nxb3 16. axb3 b6 17. f4 Kh7 18. Rad1 Qc8 19. Bd4 Bxd4+ 20. Rxd4 Qc5 21. Qf2 Rac8 22. b4 Qb5 23. h3 a5 24. e5 Rfd8 25. exd6 axb4 26. Ne4 {1-0 (25) Hracek,Z (2584)-Kulhanek,T (2382) Pardubice 2003}) 15. axb3 {[%emt 0:00:06]} Ne6 {[%emt 0:01:04]} 16. Bh4 {[%emt 0:16:54]} Be5 {[%emt 0:14:28]} 17. Qe3 {[%emt 0:01:51]} a6 {[%emt 0:29:27]} (17... Bd4 $11 18. Qd3 Re8) 18. Nd5 $16 {[%emt 0:01:19]} f6 {[%emt 0:02:24]} 19. c3 {[%emt 0:02:02] Strongly threatening f4. White is more active.} g5 {[%emt 0:03:29] Against f4} 20. Bg3 {[%emt 0:00:10]} Rf7 {[%emt 0:01:24]} 21. Rad1 {[%emt 0:02:20]} Rg7 {[%emt 0:05:59]} 22. Qe2 {[%emt 0:05:06]} Qe8 {[%emt 0:03:43]} 23. Qc4 {[%emt 0:12:23]} Rc8 {[%emt 0:00:57] Prevents Nc7.} 24. Qa4 {[%emt 0:05:26]} (24. Qd3 $14) 24... Qxa4 $11 {[%emt 0:02:11]} 25. bxa4 {[%emt 0:00:01]} Kf7 {[%emt 0:01:54]} 26. Re3 {[%emt 0:03:16]} Nf4 {[%emt 0:05:05]} (26... Nc5 $15) 27. Bxf4 {[%emt 0:02:43]} gxf4 {[%emt 0:00:37]} 28. Ree1 {[%emt 0:03:56]} Rcg8 {[%emt 0:01:55]} ({Better is} 28... a5) 29. g3 $1 {[%emt 0:00:02]} h5 {[%emt 0:00:29]} 30. Kf1 {[%emt 0:00:47]} fxg3 {[%emt 0:02:20]} 31. hxg3 {[%emt 0:00:02]} h4 {[%emt 0:04:58]} 32. gxh4 {[%emt 0:00:05]} (32. f4 $1 {deserves consideration.}) 32... Rg4 {[%emt 0:00:37]} 33. Re3 {[%emt 0:00:49]} Rxh4 {[%emt 0:00:16]} 34. Ke2 {[%emt 0:01:18]} Rgg4 {[%emt 0:00:30]} 35. Kd3 {[%emt 0:00:40]} Rg2 {[%emt 0:01:21]} (35... Ke8 {looks sharper.} 36. a5 Kd7 37. b4 e6) 36. Rf1 {[%emt 0:01:08] aiming for f4. The position is equal.} e6 {[%emt 0:00:52]} 37. Nb6 {[%emt 0:01:36]} ({Not} 37. f4 $2 exd5 38. fxe5 dxe4+ 39. Rxe4 Rg3+ 40. Re3 Rxe3+ 41. Kxe3 dxe5 $19) 37... Rhh2 {[%emt 0:00:45]} 38. Rf3 {[%emt 0:02:27]} Ke7 {[%emt 0:00:23]} 39. a5 {[%emt 0:00:55]} Rh4 {[%emt 0:00:35]} 40. b3 {[%emt 0:04:05]} Bf4 {[%emt 0:00:29]} 41. Ra1 {[%emt 0:30:51]} Bg5 {[%emt 0:30:30]} 42. Ra4 {[%emt 0:00:00]} Rg1 {[%emt 0:00:00]} 43. Rc4 {[%emt 0:00:00]} Rd1+ {[%emt 0:00:00]} 44. Ke2 {[%emt 0:00:00]} Rhh1 {[%emt 0:00:00][%csl Gg5][%cal Rd1d2] [#]} 45. Rg3 {[%emt 0:00:00]} Rd2+ {[%emt 0:00:00]} 46. Kf3 {[%emt 0:00:00]} Rh2 {[%emt 0:00:00] Weighted Error Value: White=0.11 (very precise) /Black=0.10 (very precise)} 1/2-1/2